[Event "Late-Titled-Tuesday-Blitz-January-16-2024"]
[Site "Chess.com"]
[Date "2024.01.16"]
[Round "6"]
[White "Malev212"]
[Black "Hrant_ChessMood"]
[Result "0-1"]
[WhiteElo "2656"]
[BlackElo "2900"]
[TimeControl "180+1"]
[EndTime "15:04:56 PST"]
[Termination "Hrant_ChessMood won on time"]

1. e4 {[%clk 0:02:55.3]} 1... c6 {[%clk 0:02:54.8]} 2. d4 {[%clk 0:02:53.4]}
2... d5 {[%clk 0:02:54.7]} 3. exd5 {[%clk 0:02:53.5]} 3... cxd5 {[%clk
0:02:54.7]} 4. Bf4 {[%clk 0:02:53.3]} 4... Nf6 {[%clk 0:02:54.8]} 5. c3 {[%clk
0:02:51.6]} 5... Nc6 {[%clk 0:02:52.1]} 6. Bd3 {[%clk 0:02:50.6]} 6... Bg4
{[%clk 0:02:51.7]} 7. Nf3 {[%clk 0:02:50.5]} 7... e6 {[%clk 0:02:51.8]} 8. Nbd2
{[%clk 0:02:50.3]} 8... Bd6 {[%clk 0:02:50.2]} 9. Bxd6 {[%clk 0:02:50.2]} 9...
Qxd6 {[%clk 0:02:51.1]} 10. O-O {[%clk 0:02:50.2]} 10... O-O {[%clk 0:02:51.2]}
11. Re1 {[%clk 0:02:50.1]} 11... Rab8 {[%clk 0:02:48.4]} 12. Qc2 {[%clk
0:02:45.3]} 12... Bh5 {[%clk 0:02:48.1]} 13. Ne5 {[%clk 0:02:44.8]} 13... Rfc8
{[%clk 0:02:42.2]} 14. Qb1 {[%clk 0:02:14.5]} 14... b5 {[%clk 0:02:30.4]} 15. a3
{[%clk 0:02:12.7]} 15... a5 {[%clk 0:02:29.5]} 16. b4 {[%clk 0:02:04.8]} 16...
Ne7 {[%clk 0:02:14.7]} 17. Re3 {[%clk 0:01:57.9]} 17... Bg6 {[%clk 0:02:11.5]}
18. Bxg6 {[%clk 0:01:49.6]} 18... hxg6 {[%clk 0:02:06.6]} 19. Nb3 {[%clk
0:01:48.8]} 19... axb4 {[%clk 0:02:02.3]} 20. axb4 {[%clk 0:01:46.5]} 20... Nd7
{[%clk 0:01:40.8]} 21. Nxd7 {[%clk 0:01:38.4]} 21... Qxd7 {[%clk 0:01:40.6]} 22.
Nc5 {[%clk 0:01:38.7]} 22... Qd6 {[%clk 0:01:34.1]} 23. Qd3 {[%clk 0:01:37.7]}
23... Ra8 {[%clk 0:01:32.5]} 24. Rae1 {[%clk 0:01:36.6]} 24... Nf5 {[%clk
0:01:27.4]} 25. Rh3 {[%clk 0:01:35.1]} 25... Ra2 {[%clk 0:01:10.8]} 26. Qf3
{[%clk 0:01:22]} 26... Rca8 {[%clk 0:01:05.8]} 27. g4 {[%clk 0:01:21.6]} 27...
Ra1 {[%clk 0:01:01.9]} 28. Rxa1 {[%clk 0:01:20.7]} 28... Rxa1+ {[%clk
0:01:02.8]} 29. Kg2 {[%clk 0:01:20.9]} 29... Nh6 {[%clk 0:01:01.2]} 30. Rg3
{[%clk 0:01:12.4]} 30... g5 {[%clk 0:00:56.9]} 31. h3 {[%clk 0:01:06.2]} 31...
Ra2 {[%clk 0:00:43.4]} 32. Qe3 {[%clk 0:00:58.2]} 32... Qf4 {[%clk 0:00:43.5]}
33. Nd3 {[%clk 0:00:57.3]} 33... Qxe3 {[%clk 0:00:34]} 34. Rxe3 {[%clk 0:00:57]}
34... Kf8 {[%clk 0:00:34.9]} 35. Kg3 {[%clk 0:00:47.4]} 35... Ke7 {[%clk
0:00:33.2]} 36. h4 {[%clk 0:00:44.8]} 36... gxh4+ {[%clk 0:00:31.7]} 37. Kxh4
{[%clk 0:00:44.8]} 37... Ra1 {[%clk 0:00:31.8]} 38. f3 {[%clk 0:00:42.8]} 38...
Ng8 {[%clk 0:00:27.5]} 39. Kg5 {[%clk 0:00:40.9]} 39... Nf6 {[%clk 0:00:26.5]}
40. Ne5 {[%clk 0:00:37.4]} 40... Rg1 {[%clk 0:00:20.7]} 41. Kf4 {[%clk
0:00:35.1]} 41... Nh7 {[%clk 0:00:17.7]} 42. Rd3 {[%clk 0:00:33.2]} 42... Nf8
{[%clk 0:00:18.1]} 43. Ke3 {[%clk 0:00:27.9]} 43... f6 {[%clk 0:00:12.4]} 44.
Nc6+ {[%clk 0:00:26.1]} 44... Kd7 {[%clk 0:00:12.3]} 45. Na7 {[%clk 0:00:26]}
45... g5 {[%clk 0:00:10.9]} 46. Nxb5 {[%clk 0:00:19.3]} 46... Ng6 {[%clk
0:00:11.3]} 47. Rd2 {[%clk 0:00:16.6]} 47... Nf4 {[%clk 0:00:10.9]} 48. Rh2
{[%clk 0:00:11.8]} 48... Kc6 {[%clk 0:00:08.5]} 49. Na7+ {[%clk 0:00:09.6]}
49... Kb6 {[%clk 0:00:08.9]} 50. Nc8+ {[%clk 0:00:08.5]} 50... Kb5 {[%clk
0:00:09.5]} 51. Nd6+ {[%clk 0:00:06.3]} 51... Ka4 {[%clk 0:00:09.8]} 52. b5
{[%clk 0:00:05.5]} 52... Re1+ {[%clk 0:00:08.3]} 53. Kd2 {[%clk 0:00:04.2]}
53... Rb1 {[%clk 0:00:08.5]} 54. Rh8 {[%clk 0:00:03.3]} 54... Kb3 {[%clk
0:00:08.8]} 0-1

[Event "Late-Titled-Tuesday-Blitz-January-16-2024"]
[Site "Chess.com"]
[Date "2024.01.16"]
[Round "6"]
[White "TEREZANA"]
[Black "Chempiblinka"]
[Result "1-0"]
[WhiteElo "2516"]
[BlackElo "2306"]
[TimeControl "180+1"]
[EndTime "15:05:00 PST"]
[Termination "TEREZANA won on time"]

1. d4 {[%clk 0:02:49.9]} 1... Nf6 {[%clk 0:02:59.1]} 2. Nf3 {[%clk 0:02:49]}
2... g6 {[%clk 0:03:00]} 3. Nbd2 {[%clk 0:02:45.9]} 3... c5 {[%clk 0:02:54.2]}
4. e3 {[%clk 0:02:41.7]} 4... cxd4 {[%clk 0:02:53.6]} 5. exd4 {[%clk 0:02:41.9]}
5... Bg7 {[%clk 0:02:53.1]} 6. c3 {[%clk 0:02:40.5]} 6... O-O {[%clk 0:02:53.3]}
7. Be2 {[%clk 0:02:33.5]} 7... d6 {[%clk 0:02:53.3]} 8. O-O {[%clk 0:02:33]}
8... Nc6 {[%clk 0:02:52.9]} 9. Nc4 {[%clk 0:02:26]} 9... b5 {[%clk 0:02:41.2]}
10. Ne3 {[%clk 0:02:10.5]} 10... Rb8 {[%clk 0:02:40.3]} 11. Qc2 {[%clk
0:02:07.2]} 11... e5 {[%clk 0:02:35.4]} 12. dxe5 {[%clk 0:02:03.8]} 12... dxe5
{[%clk 0:02:30.2]} 13. Rd1 {[%clk 0:01:54.6]} 13... Qe7 {[%clk 0:02:25.1]} 14.
b4 {[%clk 0:01:55.3]} 14... Be6 {[%clk 0:02:03.9]} 15. a4 {[%clk 0:01:54.8]}
15... a6 {[%clk 0:02:01.4]} 16. Ng5 {[%clk 0:01:51.3]} 16... Bd7 {[%clk
0:01:47.1]} 17. axb5 {[%clk 0:01:39.9]} 17... axb5 {[%clk 0:01:46.6]} 18. Bf3
{[%clk 0:01:35.1]} 18... Rfc8 {[%clk 0:01:37.6]} 19. Nd5 {[%clk 0:01:30]} 19...
Nxd5 {[%clk 0:01:35.9]} 20. Bxd5 {[%clk 0:01:30.1]} 20... Nxb4 {[%clk
0:01:30.7]} 21. Bxf7+ {[%clk 0:01:24.7]} 21... Qxf7 {[%clk 0:01:26.7]} 22. Qb2
{[%clk 0:01:21.3]} 22... Qf5 {[%clk 0:00:35.9]} 23. Qxb4 {[%clk 0:01:20.1]}
23... h6 {[%clk 0:00:28.8]} 24. Qb3+ {[%clk 0:00:44.2]} 24... Rc4 {[%clk
0:00:27.7]} 25. Ra7 {[%clk 0:00:42.1]} 25... hxg5 {[%clk 0:00:23.1]} 26. Rdxd7
{[%clk 0:00:38.1]} 26... Bf6 {[%clk 0:00:20.7]} 27. h3 {[%clk 0:00:19.6]} 27...
e4 {[%clk 0:00:20.1]} 28. Be3 {[%clk 0:00:17.5]} 28... Bxc3 {[%clk 0:00:19.6]}
29. Qd1 {[%clk 0:00:14.2]} 29... Re8 {[%clk 0:00:16.9]} 30. Rd8 {[%clk
0:00:13.9]} 30... Rc8 {[%clk 0:00:13.9]} 31. Qd5+ {[%clk 0:00:11.9]} 31... Qxd5
{[%clk 0:00:11.6]} 32. Rxd5 {[%clk 0:00:11.1]} 32... Rcd8 {[%clk 0:00:11]} 33.
Rxd8 {[%clk 0:00:10.6]} 33... Rxd8 {[%clk 0:00:11.9]} 34. Bxg5 {[%clk
0:00:10.9]} 34... Rd1+ {[%clk 0:00:11.1]} 35. Kh2 {[%clk 0:00:11.2]} 35... Be5+
{[%clk 0:00:11.3]} 36. g3 {[%clk 0:00:11.8]} 36... b4 {[%clk 0:00:10.8]} 37. Rb7
{[%clk 0:00:11.7]} 37... Bc3 {[%clk 0:00:10]} 38. h4 {[%clk 0:00:11.4]} 38...
Rb1 {[%clk 0:00:08.4]} 39. h5 {[%clk 0:00:09.8]} 39... gxh5 {[%clk 0:00:08]} 40.
Kh3 {[%clk 0:00:10]} 40... Rh1+ {[%clk 0:00:07.6]} 41. Kg2 {[%clk 0:00:10.1]}
41... Rb1 {[%clk 0:00:07.3]} 42. Kh3 {[%clk 0:00:10.2]} 42... b3 {[%clk
0:00:07.7]} 43. Kh4 {[%clk 0:00:10.1]} 43... b2 {[%clk 0:00:08.1]} 44. Kxh5
{[%clk 0:00:10.5]} 44... Rh1+ {[%clk 0:00:08.4]} 45. Kg6 {[%clk 0:00:11]} 45...
Bb4 {[%clk 0:00:06.7]} 46. Rb8+ {[%clk 0:00:10.7]} 46... Bf8 {[%clk 0:00:05.9]}
47. Be7 {[%clk 0:00:11.2]} 47... Rh6+ {[%clk 0:00:05.9]} 48. Kg5 {[%clk
0:00:11.8]} 48... Kf7 {[%clk 0:00:04]} 49. Bxf8 {[%clk 0:00:10.5]} 49... Rh8
{[%clk 0:00:02.6]} 50. Rxb2 {[%clk 0:00:06.9]} 50... Rxf8 {[%clk 0:00:02.8]} 51.
Rb4 {[%clk 0:00:06.4]} 51... Re8 {[%clk 0:00:02.9]} 52. Kf4 {[%clk 0:00:06.5]}
52... e3 {[%clk 0:00:02.1]} 53. fxe3 {[%clk 0:00:06.5]} 53... Kf6 {[%clk
0:00:03]} 54. e4 {[%clk 0:00:06.8]} 54... Rc8 {[%clk 0:00:02.7]} 55. Rb6+ {[%clk
0:00:06.8]} 55... Kf7 {[%clk 0:00:03.1]} 56. Kf5 {[%clk 0:00:07.4]} 56... Rc1
{[%clk 0:00:02.8]} 57. Rb7+ {[%clk 0:00:06.2]} 57... Kf8 {[%clk 0:00:01.9]} 58.
e5 {[%clk 0:00:05.9]} 58... Rc6 {[%clk 0:00:01.9]} 59. e6 {[%clk 0:00:05.7]}
59... Rc1 {[%clk 0:00:01.4]} 60. Rb8+ {[%clk 0:00:05.5]} 60... Ke7 {[%clk
0:00:01.2]} 61. Rb7+ {[%clk 0:00:06.1]} 1-0

[Event "Late-Titled-Tuesday-Blitz-January-16-2024"]
[Site "Chess.com"]
[Date "2024.01.16"]
[Round "6"]
[White "VerdeNotte"]
[Black "FabianoCaruana"]
[Result "1-0"]
[WhiteElo "2894"]
[BlackElo "3019"]
[TimeControl "180+1"]
[EndTime "15:05:04 PST"]
[Termination "VerdeNotte won by resignation"]

1. Nf3 {[%clk 0:03:00.9]} 1... d5 {[%clk 0:02:56.7]} 2. c4 {[%clk 0:03:00.6]}
2... d4 {[%clk 0:02:56.3]} 3. b4 {[%clk 0:03:00.5]} 3... c5 {[%clk 0:02:54.1]}
4. g3 {[%clk 0:03:00.3]} 4... Qc7 {[%clk 0:02:53.7]} 5. bxc5 {[%clk 0:02:51.2]}
5... e5 {[%clk 0:02:53.5]} 6. Ba3 {[%clk 0:02:50.8]} 6... Nc6 {[%clk 0:02:53.4]}
7. d3 {[%clk 0:02:47.4]} 7... Nf6 {[%clk 0:02:52.9]} 8. Nfd2 {[%clk 0:02:37.1]}
8... h5 {[%clk 0:02:45.4]} 9. Bg2 {[%clk 0:02:19.5]} 9... h4 {[%clk 0:02:44.9]}
10. Kf1 {[%clk 0:02:00.1]} 10... Be7 {[%clk 0:02:39.6]} 11. Ne4 {[%clk
0:01:58.1]} 11... Nxe4 {[%clk 0:02:36.1]} 12. Bxe4 {[%clk 0:01:57.9]} 12... Be6
{[%clk 0:02:27.4]} 13. Nd2 {[%clk 0:01:52.9]} 13... O-O-O {[%clk 0:02:20.5]} 14.
Rb1 {[%clk 0:01:50.3]} 14... f5 {[%clk 0:02:20.5]} 15. Bg2 {[%clk 0:01:37.8]}
15... h3 {[%clk 0:02:18.4]} 16. Bf3 {[%clk 0:01:37.7]} 16... g5 {[%clk
0:02:07.7]} 17. Rg1 {[%clk 0:01:37]} 17... e4 {[%clk 0:01:47.2]} 18. dxe4 {[%clk
0:01:36.4]} 18... g4 {[%clk 0:01:45.7]} 19. Bh1 {[%clk 0:01:35.7]} 19... d3
{[%clk 0:01:45.9]} 20. e3 {[%clk 0:01:14.5]} 20... Rhf8 {[%clk 0:01:44.9]} 21.
Qb3 {[%clk 0:01:09.2]} 21... fxe4 {[%clk 0:01:35]} 22. Bxe4 {[%clk 0:01:06.8]}
22... Bg5 {[%clk 0:01:18.1]} 23. Ke1 {[%clk 0:00:57.8]} 23... Rf7 {[%clk
0:01:18.2]} 24. Bd5 {[%clk 0:00:45.1]} 24... Qd7 {[%clk 0:00:35.5]} 25. Qxb7+
{[%clk 0:00:33.8]} 25... Qxb7 {[%clk 0:00:34.7]} 26. Bxe6+ {[%clk 0:00:33.9]}
26... Kb8 {[%clk 0:00:34.5]} 27. Bxf7 {[%clk 0:00:30.5]} 27... Qxb1+ {[%clk
0:00:33.9]} 28. Nxb1 {[%clk 0:00:30.2]} 28... Ne5 {[%clk 0:00:34.6]} 29. Bd5
{[%clk 0:00:22.9]} 29... Rxd5 {[%clk 0:00:34.3]} 30. cxd5 {[%clk 0:00:23.5]}
30... Nf3+ {[%clk 0:00:34.5]} 31. Kd1 {[%clk 0:00:21.7]} 31... Nxg1 {[%clk
0:00:33.4]} 32. Nd2 {[%clk 0:00:21.5]} 32... Bf6 {[%clk 0:00:29]} 33. Bb4 {[%clk
0:00:16.7]} 33... Be5 {[%clk 0:00:21.7]} 34. c6 {[%clk 0:00:13.9]} 34... Kc7
{[%clk 0:00:08.7]} 35. Ba5+ {[%clk 0:00:12.4]} 35... Kc8 {[%clk 0:00:06.1]} 36.
Nc4 {[%clk 0:00:12.1]} 36... Bc7 {[%clk 0:00:06.7]} 37. Bxc7 {[%clk 0:00:09.6]}
37... Kxc7 {[%clk 0:00:07.6]} 38. Ne5 {[%clk 0:00:05.8]} 38... Kd6 {[%clk
0:00:08]} 39. Kc1 {[%clk 0:00:03.1]} 39... a5 {[%clk 0:00:05.8]} 40. a4 {[%clk
0:00:02.7]} 40... Ne2+ {[%clk 0:00:04.5]} 41. Kd2 {[%clk 0:00:02.3]} 41... Kc7
{[%clk 0:00:03.1]} 42. Nxd3 {[%clk 0:00:02.4]} 42... Ng1 {[%clk 0:00:03.2]} 43.
Ne5 {[%clk 0:00:02.7]} 43... Kd6 {[%clk 0:00:04.1]} 44. Kd3 {[%clk 0:00:02.7]}
44... Kc7 {[%clk 0:00:04]} 45. Ke4 {[%clk 0:00:02.8]} 45... Kd6 {[%clk
0:00:04.5]} 46. Nxg4 {[%clk 0:00:02.8]} 46... Ne2 {[%clk 0:00:04.1]} 47. Nf6
{[%clk 0:00:01.8]} 47... Nc3+ {[%clk 0:00:04.3]} 48. Kd4 {[%clk 0:00:02.7]}
48... Nxa4 {[%clk 0:00:05.2]} 49. Ne4+ {[%clk 0:00:02.7]} 49... Kc7 {[%clk
0:00:05.3]} 50. Nc5 {[%clk 0:00:03.1]} 50... Nb6 {[%clk 0:00:05.5]} 51. Ke5
{[%clk 0:00:02.7]} 51... a4 {[%clk 0:00:05.6]} 52. Ne6+ {[%clk 0:00:02.8]} 52...
Kc8 {[%clk 0:00:06.1]} 53. d6 {[%clk 0:00:03.7]} 53... a3 {[%clk 0:00:06.6]} 54.
d7+ {[%clk 0:00:03.5]} 54... Nxd7+ {[%clk 0:00:07.1]} 55. cxd7+ {[%clk
0:00:04.4]} 55... Kxd7 {[%clk 0:00:08]} 56. Nc5+ {[%clk 0:00:05.1]} 56... Kc6
{[%clk 0:00:07.9]} 57. Nb3 {[%clk 0:00:05.8]} 57... Kb5 {[%clk 0:00:08.8]} 58.
Kd4 {[%clk 0:00:04.9]} 58... Kb4 {[%clk 0:00:09.3]} 59. Na1 {[%clk 0:00:05.1]}
59... a2 {[%clk 0:00:10.2]} 60. e4 {[%clk 0:00:05.6]} 60... Ka3 {[%clk
0:00:10.4]} 61. Kc3 {[%clk 0:00:06.3]} 61... Ka4 {[%clk 0:00:11]} 62. Kb2 {[%clk
0:00:06.3]} 62... Kb5 {[%clk 0:00:11.9]} 63. Kxa2 {[%clk 0:00:06.6]} 63... Kc4
{[%clk 0:00:12.8]} 64. Kb2 {[%clk 0:00:07.1]} 64... Kd4 {[%clk 0:00:13.1]} 65.
f3 {[%clk 0:00:07.7]} 65... Ke3 {[%clk 0:00:13.7]} 66. e5 {[%clk 0:00:08.1]}
66... Kxf3 {[%clk 0:00:14.6]} 67. e6 {[%clk 0:00:08.7]} 67... Kg2 {[%clk
0:00:15.5]} 68. e7 {[%clk 0:00:09.5]} 68... Kxh2 {[%clk 0:00:16.4]} 69. e8=Q
{[%clk 0:00:10.1]} 69... Kxg3 {[%clk 0:00:17.3]} 70. Qe4 {[%clk 0:00:10.3]}
70... h2 {[%clk 0:00:18.2]} 71. Qh1 {[%clk 0:00:10.3]} 1-0

[Event "Late-Titled-Tuesday-Blitz-January-16-2024"]
[Site "Chess.com"]
[Date "2024.01.16"]
[Round "6"]
[White "Hui_Li_Macau"]
[Black "Jbd735"]
[Result "0-1"]
[WhiteElo "2312"]
[BlackElo "2509"]
[TimeControl "180+1"]
[EndTime "15:05:04 PST"]
[Termination "Jbd735 won by resignation"]

1. e4 {[%clk 0:03:00.9]} 1... e5 {[%clk 0:02:57.8]} 2. Nf3 {[%clk 0:03:00.9]}
2... Nc6 {[%clk 0:02:57.5]} 3. Bb5 {[%clk 0:03:01.3]} 3... a6 {[%clk 0:02:57]}
4. Ba4 {[%clk 0:03:01.6]} 4... Nf6 {[%clk 0:02:56.4]} 5. O-O {[%clk 0:03:02]}
5... Be7 {[%clk 0:02:55.7]} 6. Re1 {[%clk 0:03:02.2]} 6... b5 {[%clk 0:02:55.6]}
7. Bb3 {[%clk 0:03:02.7]} 7... d6 {[%clk 0:02:56.1]} 8. c3 {[%clk 0:03:02.9]}
8... O-O {[%clk 0:02:55.6]} 9. h3 {[%clk 0:03:03.4]} 9... Na5 {[%clk 0:02:55.7]}
10. Bc2 {[%clk 0:03:03.9]} 10... c5 {[%clk 0:02:55.7]} 11. d4 {[%clk 0:03:04.6]}
11... Qc7 {[%clk 0:02:54.1]} 12. Nbd2 {[%clk 0:03:04.7]} 12... Nc6 {[%clk
0:02:52.6]} 13. d5 {[%clk 0:03:03.6]} 13... Nd8 {[%clk 0:02:52.7]} 14. a4 {[%clk
0:03:03.3]} 14... Rb8 {[%clk 0:02:52.4]} 15. b4 {[%clk 0:02:50.7]} 15... Ne8
{[%clk 0:02:49.6]} 16. Nf1 {[%clk 0:02:46.5]} 16... g6 {[%clk 0:02:47.6]} 17.
axb5 {[%clk 0:02:43.4]} 17... axb5 {[%clk 0:02:47.2]} 18. Ng3 {[%clk 0:02:40.5]}
18... f6 {[%clk 0:02:43.4]} 19. Nh2 {[%clk 0:02:31.3]} 19... Ng7 {[%clk
0:02:39]} 20. f4 {[%clk 0:02:24]} 20... cxb4 {[%clk 0:02:17.6]} 21. cxb4 {[%clk
0:02:23.7]} 21... Qc3 {[%clk 0:02:14.8]} 22. Bd2 {[%clk 0:02:20.4]} 22... Qxg3
{[%clk 0:02:13.8]} 23. Ra7 {[%clk 0:01:47.5]} 23... Rf7 {[%clk 0:01:47.2]} 24.
Rf1 {[%clk 0:01:45.5]} 24... Bxh3 {[%clk 0:01:41.9]} 25. Qe2 {[%clk 0:01:34]}
25... Bc8 {[%clk 0:01:17]} 26. Bd1 {[%clk 0:01:05.1]} 26... Bf8 {[%clk
0:01:13.4]} 27. Be1 {[%clk 0:00:45.4]} 27... Qxe1 {[%clk 0:00:43.2]} 28. Qxe1
{[%clk 0:00:37.9]} 28... Rxa7 {[%clk 0:00:43.5]} 29. Ng4 {[%clk 0:00:29]} 29...
Bxg4 {[%clk 0:00:38.8]} 30. Bxg4 {[%clk 0:00:29.9]} 30... Rba8 {[%clk
0:00:28.6]} 31. fxe5 {[%clk 0:00:25.5]} 31... dxe5 {[%clk 0:00:23.1]} 32. Qe2
{[%clk 0:00:24]} 32... Bxb4 {[%clk 0:00:20.3]} 33. Qxb5 {[%clk 0:00:21.5]} 33...
Rb7 {[%clk 0:00:18.9]} 34. Qc4 {[%clk 0:00:16.2]} 34... Rb6 {[%clk 0:00:17.5]}
35. d6+ {[%clk 0:00:13.7]} 35... Kh8 {[%clk 0:00:17.1]} 36. Rxf6 {[%clk
0:00:09.4]} 36... Bxd6 {[%clk 0:00:14]} 37. Kh2 {[%clk 0:00:08.1]} 37... h5
{[%clk 0:00:09.3]} 38. Bh3 {[%clk 0:00:08.1]} 38... Rab8 {[%clk 0:00:09]} 39.
Rxg6 {[%clk 0:00:04.7]} 39... Bf8 {[%clk 0:00:07.1]} 40. Rxb6 {[%clk 0:00:03.5]}
40... Rxb6 {[%clk 0:00:08]} 41. Qd5 {[%clk 0:00:03.8]} 41... Rd6 {[%clk
0:00:06.1]} 42. Qxe5 {[%clk 0:00:03.5]} 42... Rg6 {[%clk 0:00:04.7]} 43. Qd5
{[%clk 0:00:02.7]} 43... Bd6+ {[%clk 0:00:04.5]} 44. Kg1 {[%clk 0:00:03]} 44...
Bc7 {[%clk 0:00:03.8]} 45. e5 {[%clk 0:00:03.2]} 45... Bb6+ {[%clk 0:00:02.7]}
46. Kf1 {[%clk 0:00:03.1]} 46... Nge6 {[%clk 0:00:02.8]} 47. Ke2 {[%clk
0:00:02.7]} 47... Nf4+ {[%clk 0:00:02.7]} 48. Kf3 {[%clk 0:00:03.2]} 48... Nxd5
{[%clk 0:00:03.6]} 49. Ke4 {[%clk 0:00:04.1]} 49... Ne7 {[%clk 0:00:03.9]} 50.
g4 {[%clk 0:00:03.8]} 50... Rg7 {[%clk 0:00:04.6]} 51. gxh5 {[%clk 0:00:04.1]}
51... Rg3 {[%clk 0:00:04.9]} 52. Bd7 {[%clk 0:00:03.6]} 52... Rg5 {[%clk
0:00:05]} 53. h6 {[%clk 0:00:03.6]} 53... Bc7 {[%clk 0:00:05.2]} 54. Kf4 {[%clk
0:00:04]} 54... Rxe5 {[%clk 0:00:05.1]} 55. Kg4 {[%clk 0:00:04.4]} 55... Ng8
{[%clk 0:00:05.4]} 56. Kf3 {[%clk 0:00:03.6]} 56... Nf6 {[%clk 0:00:05.6]} 57.
Bh3 {[%clk 0:00:03.5]} 57... Rh5 {[%clk 0:00:05.4]} 58. Bf1 {[%clk 0:00:03.5]}
58... Rxh6 {[%clk 0:00:06]} 59. Bd3 {[%clk 0:00:02.9]} 59... Kg7 {[%clk
0:00:06.9]} 60. Ke2 {[%clk 0:00:02.9]} 60... Kf8 {[%clk 0:00:07.8]} 61. Kd1
{[%clk 0:00:03]} 61... Ke7 {[%clk 0:00:08.7]} 62. Kc2 {[%clk 0:00:03.9]} 62...
Ne6 {[%clk 0:00:09.6]} 0-1

[Event "Late-Titled-Tuesday-Blitz-January-16-2024"]
[Site "Chess.com"]
[Date "2024.01.16"]
[Round "6"]
[White "ShahMatKanal"]
[Black "Incognito_Knight"]
[Result "1/2-1/2"]
[WhiteElo "2528"]
[BlackElo "2747"]
[TimeControl "180+1"]
[EndTime "15:05:07 PST"]
[Termination "Game drawn - insufficient material"]

1. d4 {[%clk 0:02:56.9]} 1... d5 {[%clk 0:02:58]} 2. c4 {[%clk 0:02:52.8]} 2...
e6 {[%clk 0:02:57.9]} 3. cxd5 {[%clk 0:02:52.8]} 3... exd5 {[%clk 0:02:57.8]} 4.
Nc3 {[%clk 0:02:53.7]} 4... c6 {[%clk 0:02:56.7]} 5. Bf4 {[%clk 0:02:52.6]} 5...
Bd6 {[%clk 0:02:55]} 6. Bxd6 {[%clk 0:02:52.6]} 6... Qxd6 {[%clk 0:02:55.9]} 7.
e3 {[%clk 0:02:53.1]} 7... Bf5 {[%clk 0:02:55.2]} 8. Bd3 {[%clk 0:02:53.5]} 8...
Bxd3 {[%clk 0:02:53.4]} 9. Qxd3 {[%clk 0:02:54.4]} 9... Nf6 {[%clk 0:02:51.9]}
10. Nf3 {[%clk 0:02:54.9]} 10... O-O {[%clk 0:02:52.2]} 11. O-O {[%clk
0:02:55.5]} 11... Nbd7 {[%clk 0:02:45.7]} 12. Rab1 {[%clk 0:02:44.5]} 12... a5
{[%clk 0:02:40.9]} 13. a4 {[%clk 0:02:37.2]} 13... Rfe8 {[%clk 0:02:37.5]} 14.
Qc2 {[%clk 0:02:36.7]} 14... Nb8 {[%clk 0:02:34]} 15. Qb3 {[%clk 0:02:24.4]}
15... Qb4 {[%clk 0:02:30.1]} 16. Qc2 {[%clk 0:02:16.9]} 16... Na6 {[%clk
0:02:29.8]} 17. Na2 {[%clk 0:02:08.1]} 17... Qd6 {[%clk 0:02:26.3]} 18. Nd2
{[%clk 0:02:08.4]} 18... g6 {[%clk 0:02:16.3]} 19. Qc3 {[%clk 0:01:51.4]} 19...
Nb4 {[%clk 0:02:11.6]} 20. Qa3 {[%clk 0:01:49.5]} 20... Kg7 {[%clk 0:01:38.8]}
21. Nb3 {[%clk 0:01:42.9]} 21... Ng4 {[%clk 0:01:16.2]} 22. g3 {[%clk
0:01:38.5]} 22... Qe7 {[%clk 0:01:00.4]} 23. Nc5 {[%clk 0:01:06.9]} 23... Nxa2
{[%clk 0:00:37.2]} 24. Qxa2 {[%clk 0:01:06.4]} 24... h5 {[%clk 0:00:37.9]} 25.
b4 {[%clk 0:00:49]} 25... h4 {[%clk 0:00:36.8]} 26. Rfe1 {[%clk 0:00:42.4]}
26... hxg3 {[%clk 0:00:35.5]} 27. fxg3 {[%clk 0:00:42]} 27... Nxe3 {[%clk
0:00:28.7]} 28. bxa5 {[%clk 0:00:40.4]} 28... Qg5 {[%clk 0:00:25.7]} 29. Rxb7
{[%clk 0:00:36.9]} 29... Qf6 {[%clk 0:00:14.2]} 30. Qf2 {[%clk 0:00:27.3]} 30...
Qxf2+ {[%clk 0:00:11.3]} 31. Kxf2 {[%clk 0:00:28.2]} 31... Ng4+ {[%clk
0:00:11.9]} 32. Kf1 {[%clk 0:00:27]} 32... Nxh2+ {[%clk 0:00:12]} 33. Kf2 {[%clk
0:00:27.5]} 33... Ng4+ {[%clk 0:00:12.4]} 34. Kf1 {[%clk 0:00:28]} 34... Nh2+
{[%clk 0:00:11.6]} 35. Kf2 {[%clk 0:00:28.1]} 35... Rxe1 {[%clk 0:00:09.3]} 36.
Kxe1 {[%clk 0:00:28.7]} 36... Nf3+ {[%clk 0:00:10]} 37. Kf2 {[%clk 0:00:27.8]}
37... Nxd4 {[%clk 0:00:10.7]} 38. a6 {[%clk 0:00:26.1]} 38... Kf6 {[%clk
0:00:05.6]} 39. a7 {[%clk 0:00:26]} 39... Ne6 {[%clk 0:00:01.9]} 40. Nd7+ {[%clk
0:00:25.7]} 40... Kf5 {[%clk 0:00:02.1]} 41. Nb6 {[%clk 0:00:25.7]} 41... Rd8
{[%clk 0:00:01.1]} 42. Rxf7+ {[%clk 0:00:25]} 42... Ke5 {[%clk 0:00:01.2]} 43.
a8=Q {[%clk 0:00:23.4]} 43... Rxa8 {[%clk 0:00:01.1]} 44. Nxa8 {[%clk
0:00:24.3]} 44... d4 {[%clk 0:00:01.5]} 45. Nb6 {[%clk 0:00:23.3]} 45... c5
{[%clk 0:00:01.9]} 46. a5 {[%clk 0:00:23]} 46... Ng5 {[%clk 0:00:02.5]} 47. Re7+
{[%clk 0:00:19.6]} 47... Kd6 {[%clk 0:00:02.8]} 48. Re1 {[%clk 0:00:19.1]} 48...
Kc6 {[%clk 0:00:02.2]} 49. Nc4 {[%clk 0:00:18.3]} 49... Kb5 {[%clk 0:00:02.8]}
50. Rc1 {[%clk 0:00:17.7]} 50... Ne4+ {[%clk 0:00:03.4]} 51. Kf3 {[%clk
0:00:12.2]} 51... Nc3 {[%clk 0:00:04.3]} 52. Nd6+ {[%clk 0:00:08.2]} 52... Kxa5
{[%clk 0:00:04.4]} 53. Ne4 {[%clk 0:00:08.3]} 53... Kb4 {[%clk 0:00:03.3]} 54.
Nxc3 {[%clk 0:00:08.3]} 54... dxc3 {[%clk 0:00:04.2]} 55. Ke3 {[%clk 0:00:07.8]}
55... Kb3 {[%clk 0:00:04.8]} 56. Kd3 {[%clk 0:00:07.1]} 56... c4+ {[%clk
0:00:05.3]} 57. Kd4 {[%clk 0:00:06.4]} 57... c2 {[%clk 0:00:05.9]} 58. g4 {[%clk
0:00:04.9]} 58... Kb2 {[%clk 0:00:03.8]} 59. Rxc2+ {[%clk 0:00:04.3]} 59... Kxc2
{[%clk 0:00:04.7]} 60. Kxc4 {[%clk 0:00:05.1]} 60... Kd2 {[%clk 0:00:04.6]} 61.
Kd4 {[%clk 0:00:05.4]} 61... Ke2 {[%clk 0:00:05.2]} 62. Ke4 {[%clk 0:00:05.6]}
62... Kf2 {[%clk 0:00:05]} 63. Kf4 {[%clk 0:00:03.8]} 63... Kg2 {[%clk
0:00:05.5]} 64. Kg5 {[%clk 0:00:01.7]} 64... Kg3 {[%clk 0:00:05.6]} 65. Kxg6
{[%clk 0:00:02.6]} 65... Kxg4 {[%clk 0:00:06.5]} 1/2-1/2